Cogmind - Beta 15 @@@ ROGUE MODE // 2025.07.20 @ 08:21:20 Player: shapeshifter Result: Destroyed by H-61 Shepherd with Heavy Assault Cannon Performance ------------- Evolutions (2) 1000 Regions Visited (3) 600 Robots Destroyed (13) 65 Value Destroyed (324) 324 Prototype IDs (0) 0 Alien Tech Used (0) 0 Bonus (0) 0 TOTAL SCORE: 1989 Bonus ------- None Cogmind --------- Core Integrity 0/550 Matter 308/500 Energy 100/100 System Corruption 0% Temperature Cool (0) Movement Core (150) Ox2 Location -8/Materials Parts ------- > --- POWER (1) -------- (None) > --- PROPULSION (4) --- (None) > --- UTILITY (4) ------ Small Storage Unit High-capacity Matter Pod > --- WEAPON (2) ------- (None) > --- INVENTORY (8) ---- Light Ion Engine Aluminum Leg Improved Heat Sink High-capacity Storage Unit Peak State ------------ > --- POWER ------------ Light Nuclear Core > --- PROPULSION ------- Light Treads Light Treads Aluminum Leg Subdweller Monowheel > --- UTILITY ---------- Small Storage Unit High-capacity Matter Pod Subdweller Optics Seismic Detector > --- WEAPON ----------- Light Assault Rifle Light Assault Rifle > --- INVENTORY -------- Light Ion Engine Aluminum Leg High-capacity Storage Unit Light Assault Rifle [Rating: 15] Favorites ----------- Power Light Ion Engine Engine Light Ion Engine Power Core Light Nuclear Core Propulsion Light Treads Treads Light Treads Leg Aluminum Leg Wheel Subdweller Monowheel Utility Small Storage Unit Device Seismic Detector Storage Small Storage Unit Weapon Light Assault Rifle Energy Gun Particle Gun Ballistic Gun Light Assault Rifle Build | -11 -10 -10 -8 ------- Run | Yrd Mat Sub Mat Slots Evolved 4 | . . . 4 Power . | . . . . Propulsion 2 | . . . 2 Utility 2 | . . . 2 Weapon . | . . . . Parts Attached 15 | 7 2 1 5 Power 2 | 1 . . 1 Engine 1 | 1 . . . Core 1 | . . . 1 Reactor . | . . . . Propulsion 5 | 2 2 1 . Treads 2 | 2 . . . Leg 2 | . 2 . . Wheel 1 | . . 1 . Hover . | . . . . Flight . | . . . . Utility 4 | 2 . . 2 Device 2 | 1 . . 1 Storage 2 | 1 . . 1 Processor . | . . . . Hackware . | . . . . Protection . | . . . . Artifact . | . . . . Weapon 4 | 2 . . 2 Energy Gun 1 | . . . 1 Energy Cannon . | . . . . Ballistic Gun 3 | 2 . . 1 Ballistic Cannon . | . . . . Launcher . | . . . . Special Weapon . | . . . . Impact Weapon . | . . . . Slashing Weapon . | . . . . Piercing Weapon . | . . . . Special Melee Weapon . | . . . . Unidentified Prototypes . | . . . . Parts Lost 12 | . . . 12 Power 2 | . . . 2 Propulsion 4 | . . . 4 Utility 2 | . . . 2 Weapon 4 | . . . 4 Highest Loss Streak 11 | . . . 11 To Critical Strikes . | . . . . Average Backups 4 | 2 4 5 4 Power . | . 1 1 1 Propulsion 1 | 1 2 2 1 Utility . | . . 1 1 Weapon . | . 1 1 . Tool/Special . | . . . . Unused Backups 3 | . . . 3 Power 1 | . . . 1 Propulsion . | . . . . Utility 2 | . . . 2 Weapon . | . . . . Tool/Special . | . . . . Average Slot Usage (%) 95 | . 100 100 92 Engine 8 | . 14 14 5 Core 1 | . . . 1 Treads 16 | . 26 . 16 Leg 8 | . 1 24 8 Wheel 6 | . . 3 9 Device 15 | . 14 14 16 Storage 16 | . 14 14 17 Ballistic Gun 20 | . 28 28 16 Peak Build Rating 15 | 7 7 8 15 Average Rating 9 | 4 7 7 12 On Entrance 5 | . 7 7 8 Naked Turns . | . . . . Heaviest Build 19 | 11 11 11 19 Greatest Support 40 | 40 40 20 40 Greatest Overweight (x) . | . . . . Average Overweight (x) . | . . . . Largest Inventory Capacity 8 | 8 8 8 8 Average Capacity 7 | 6 8 8 8 Most Carried 8 | 5 4 8 7 Average Carried 4 | 2 4 5 4 Final Capacity 8 | 8 8 8 8 Final Carried 8 | 4 4 8 4 Class Distribution -------------------- 93% | Mutant 6% | Scavenger-Mutant Dominant Class ---------------- Mutant | -10/Materials Mutant | -10/Subcaves Mutant | -8/Materials Resources | -11 -10 -10 -8 ----------- Run | Yrd Mat Sub Mat Matter Collected 455 | 272 . 82 101 Remotely . | . . . . Salvage Created 472 | 103 38 82 249 Parts 27 | 7 6 6 8 Haulers Intercepted . | . . . . Recyclers Shooed 2 | . . . 2 Parts Field Recycled . | . . . . Retrieved Matter . | . . . . Parts Self-Destructed 3 | . . 3 . Prevented . | . . . . Kills | -11 -10 -10 -8 ------- Run | Yrd Mat Sub Mat Combat Hostiles Destroyed 9 | . 3 2 4 Guns 9 | . 3 2 4 Classes Destroyed 5 | 2 1 1 1 Tunneler 2 | 2 . . . Recycler 2 | 1 . . 1 Swarmer 3 | . 3 . . Grunt 4 | . . . 4 Subdweller 2 | . . 2 . Best Kill Streak 3 | 2 3 2 2 Combat Bots Only 3 | . 3 2 2 Max Kills in Single Turn 1 | 1 1 1 1 Gunslinging . | . . . . Exploded . | . . . . Melee . | . . . . Uniques/NPCs Destroyed . | . . . . Combat | -11 -10 -10 -8 -------- Run | Yrd Mat Sub Mat Hostile Shots Fired 125 | . 13 17 95 Missed 31 | . 3 6 22 Hits 94 | . 10 11 73 Projectile 94 | . 10 11 73 AOE 1 | . . . 1 Critical Strikes 4 | . . . 4 Damage Taken 1648 | . 82 219 1347 Core 634 | . 10 61 563 Absorbed by Shields . | . . . . Core Remaining (%) 85 | 100 . 71 . Volleys Fired 85 | 6 4 10 65 Largest 2 | 2 2 2 2 Hottest 65 | 40 40 40 65 Shots Fired 131 | 12 8 20 91 Gun 131 | 12 8 20 91 Cannon . | . . . . Launcher . | . . . . Special . | . . . . Kinetic 127 | 12 8 20 87 Thermal 4 | . . . 4 Explosive . | . . . . Electromagnetic . | . . . . Robot Hit Streak 16 | 4 3 9 16 Robot Miss Streak 6 | 1 1 2 6 Penetration Max . | . . . . Secondary Targets 2 | . 1 1 . Max Gunslinging Chain 1 | . 1 1 . Shots Hit Robots 93 | 8 5 16 64 Core Hits 39 | 5 4 8 22 Critical Kills . | . . . . Critical Parts Destroyed . | . . . . Critical Strikes . | . . . . Melee Attacks . | . . . . Impact . | . . . . Slashing . | . . . . Piercing . | . . . . Sneak Attacks . | . . . . Combat Hostiles . | . . . . Follow-up Attacks . | . . . . Damage Inflicted 757 | 67 42 111 537 Guns 757 | 67 42 111 537 Cannons . | . . . . Explosions . | . . . . Melee . | . . . . Ramming . | . . . . Kinetic 694 | 67 42 111 474 Thermal 63 | . . . 63 Explosive . | . . . . Electromagnetic . | . . . . Impact . | . . . . Slashing . | . . . . Piercing . | . . . . Highest Corruption . | . . . . Average Corruption . | . . . . Corruption Purged . | . . . . Corruption Blocked . | . . . . Overload Shots . | . . . . Overflow Damage . | . . . . Projectiles . | . . . . Explosions . | . . . . Melee . | . . . . Knockbacks . | . . . . Impact . | . . . . Kinetic . | . . . . Secondary . | . . . . Self-Inflicted Damage . | . . . . Shots . | . . . . Rammed . | . . . . Targets Rammed . | . . . . Kicked . | . . . . Crushed . | . . . . Highest Temperature 31 | . . . 31 Average Temperature 10 | . . . 10 Received Heat Transfer 546 | . . 66 480 Siege Activations . | . . . . Martial Activations . | . . . . Shielding Activations . | . . . . Robots Disrupted . | . . . . Combat Hostiles . | . . . . Robots Corrupted . | . . . . Combat Hostiles . | . . . . Parts Fried . | . . . . Impact Corruptions . | . . . . Robots Melted . | . . . . Combat Hostiles . | . . . . Parts Melted . | . . . . Heat Transferred 148 | . . . 148 Parts Sabotaged . | . . . . Parts Stolen . | . . . . Parts Stripped . | . . . . Power Chain Reactions . | . . . . Alert | -11 -10 -10 -8 ------- Run | Yrd Mat Sub Mat Maximum Alert Level . | . . . . Low Security (%) 100 | 100 100 . 100 Level 1 . | . . . . Level 2 . | . . . . Level 3 . | . . . . Level 4 . | . . . . Level 5 . | . . . . High Security . | . . . . Max Security . | . . . . Peak Influence 70 | 5 70 . 30 Initial . | . . . . Average 6 | . 26 . 2 Influence Increases 180 | 15 70 . 95 Destroy 0b10 Robot/C 140 | . 60 . 80 Destroy 0b10 Robot/NC 20 | 15 . . 5 Destroy Leader 20 | . 10 . 10 Influence Decreases 180 | 15 70 . 95 Time Decay 142 | 15 70 . 57 Lost Part 38 | . . . 38 Squads Dispatched 3 | . . . 3 Investigation . | . . . . Extermination . | . . . . Reinforcement 3 | . . . 3 Assault . | . . . . Garrison . | . . . . Intercept . | . . . . Searches Triggered . | . . . . Construction Impeded . | . . . . Haulers Reinforced . | . . . . Active Scanning Responses . | . . . . Cargo Convoy Interrupts . | . . . . Stealth | -11 -10 -10 -8 --------- Run | Yrd Mat Sub Mat Distress Signals 1 | . . . 1 Communications Jammed . | . . . . Distress Signals . | . . . . Times Spotted 19 | . 3 3 13 Peak Tracking Total 5 | . 3 2 5 Tactical Retreats . | . . . . Traps | -11 -10 -10 -8 ------- Run | Yrd Mat Sub Mat Traps Triggered . | . . . . Indirectly . | . . . . Trap Hack Attempts . | . . . . Triggered . | . . . . Disarmed . | . . . . Reprogrammed . | . . . . Reused . | . . . . Traps Extracted . | . . . . Installed . | . . . . Triggered . | . . . . Machines | -11 -10 -10 -8 ---------- Run | Yrd Mat Sub Mat Machines Disabled . | . . . . Max in Single Turn . | . . . . Machines Repaired . | . . . . Machines Dismantled . | . . . . Machines Sabotaged . | . . . . Overloaded Fab Kills . | . . . . Hacking | -11 -10 -10 -8 --------- Run | Yrd Mat Sub Mat Machines Accessed . | . . . . Terminals . | . . . . Fabricators . | . . . . Repair Stations . | . . . . Recycling Units . | . . . . Scanalyzers . | . . . . Garrison Access . | . . . . Total Hacks . | . . . . Successful . | . . . . Failed . | . . . . Catastrophic . | . . . . Database Lockouts . | . . . . Manual . | . . . . Terminals . | . . . . Fabricators . | . . . . Repair Stations . | . . . . Recycling Units . | . . . . Scanalyzers . | . . . . Garrison Access . | . . . . Terminal Hacks . | . . . . Fabricator Hacks . | . . . . Repair Station Hacks . | . . . . Recycling Unit Hacks . | . . . . Scanalyzer . | . . . . Garrison Access Hacks . | . . . . Unauthorized Hacks . | . . . . Terminals . | . . . . Fabricators . | . . . . Repair Stations . | . . . . Recycling Units . | . . . . Scanalyzers . | . . . . Garrison Access . | . . . . Data Cores Recovered . | . . . . Used . | . . . . Hacking Detections . | . . . . Full Trace Events . | . . . . Feedback Events . | . . . . Feedback Blocked . | . . . . Robot Schematics Acquired . | . . . . Robots Built . | . . . . Authchips . | . . . . Time . | . . . . Total Robot Build Rating . | . . . . Part Schematics Acquired . | . . . . Parts Built . | . . . . Authchips . | . . . . Time . | . . . . Total Part Build Rating . | . . . . Parts Repaired . | . . . . Time . | . . . . Parts Recycled . | . . . . Recycled Matter . | . . . . Retrieved Matter . | . . . . Retrieved Components . | . . . . Parts Scanalyzed . | . . . . Part Schematics Acquired . | . . . . Parts Damaged . | . . . . Bothacking | -11 -10 -10 -8 ------------ Run | Yrd Mat Sub Mat Used RIF Installer . | . . . . Robots Hacked . | . . . . Non-combat . | . . . . Combat . | . . . . Robot Hacks Applied . | . . . . Relay Couplers Released . | . . . . Fabnet Peak Effective % . | . . . . Robots Rewired . | . . . . Allies Hacked . | . . . . Hacks Repelled . | . . . . Allies | -11 -10 -10 -8 -------- Run | Yrd Mat Sub Mat Total Allies . | . . . . Largest Group . | . . . . Highest-Rated Group . | . . . . Highest-Rated Ally . | . . . . Total Orders . | . . . . Ally Attacks . | . . . . Total Damage . | . . . . Kills . | . . . . Allies Corrupted . | . . . . Allies Melted . | . . . . Intel | -11 -10 -10 -8 ------- Run | Yrd Mat Sub Mat Active Infowar (turns) 836 | 25 177 108 526 Optics 311 | . . . 311 Seismic 836 | 25 177 108 526 Robot Analysis Total . | . . . . Derelict Logs Recovered . | . . . . Drone Launches . | . . . . Drone Recoveries . | . . . . Exploration | -11 -10 -10 -8 ------------- Run | Yrd Mat Sub Mat Turns Passed 1044 | 163 177 108 596 Spaces Moved 341 | 88 41 67 145 Core 9 | 9 . . . Treads 262 | 79 38 . 145 Legs 40 | . 3 37 . Wheels 30 | . . 30 . Hover . | . . . . Flight . | . . . . Fastest Speed 50 | 50 120 110 160 Average Speed 148 | 148 157 115 160 Slowest Speed 160 | 160 160 120 160 Overloaded Moves . | . . . . Propulsion Burnouts . | . . . . Robots Hopped . | . . . . Potential Cave-ins . | . . . . Cave-ins Triggered . | . . . . Exploration Rate (%) 7 | 5 9 4 11 Regions Visited 3 Branch Regions 1 Pre-discovered Areas . | . . . . Known Exits Taken . | . . . . Unknown Exits Taken 3 | 1 1 1 . Scrap Searched . | . . . . Spaces Dug . | . . . . Terrain Destroyed . | . . . . Melee . | . . . . Projectile . | . . . . AOE . | . . . . Terrain Rammed . | . . . . Walls Destroyed . | . . . . Machines Disabled . | . . . . Actions | -11 -10 -10 -8 --------- Run | Yrd Mat Sub Mat Total 773 | 111 146 81 435 Wait 314 | . 100 . 214 Move 338 | 87 40 66 145 Hop . | . . . . Pick Up 18 | 11 . 4 3 Fast Attach . | . . . . Attach 14 | 7 . . 7 Detach . | . . . . Swap 4 | . 2 1 1 Drop . | . . . . Fire 85 | 6 4 10 65 Melee . | . . . . Ram . | . . . . Kick . | . . . . Crush . | . . . . Escape Stasis . | . . . . Rewire . | . . . . Trap . | . . . . Miscellaneous . | . . . . Route ------- -11/Scrapyard -10/Materials -10/Subcaves -8/Materials History --------- Turn | Location | Event 5 | -11/Scrapyard | Discovered new exit (range 15) 164 | -11/Scrapyard | Entered Materials 309 | -10/Materials | Discovered new exit (range 9) 317 | -10/Materials | Build established: Mutant 341 | -10/Materials | Entered Subcaves 345 | -10/Subcaves | Ambushed by Subdwellers from Twisted Machinery 440 | -10/Subcaves | Discovered new exit (range 8) 449 | -10/Subcaves | Entered Materials 449 | -8/Materials | Evolved 4 slots: Propulsion x2, Utility x2 1036 | -8/Materials | Core integrity fell below 50% 1044 | -8/Materials | Core integrity fell below 20% 1045 | -8/Materials | Destroyed by H-61 Shepherd with Heavy Assault Cannon Last Messages --------------- 01018_ Lgt. Assault Rifle destroyed. 01021_ Penetrated by Slug. 01021_ K-01 Serf collects debris. 01022_ W-25 Informer sends out distress signal. 01030_ Acquired Particle Gun. 01034_ Penetrated by Slug. 01034_ W-25 Informer destroyed. 01035_ Fusion Modulator explodes. 01035_ Broken Sub. Optics destroyed. 01035_ Lgt. Treads destroyed. 01035_ Terminal disabled. 01035_ K-01 Serf collects debris. 01037_ Penetrated by Slug. 01040_ Particle Gun destroyed. 01040_ K-01 Serf collects debris. 01041_ Sub. Monowheel destroyed. 01043_ H-55 Commando heat short circuits Gauss Rifle. 01043_ Knocked back. 01044_ K-01 Serf collects debris. Map ----- +----------------------------------------------------+ | ?????????????????????????????????????????????????? | | ?????????????????????????????????????????????????? | | ?????????????????????????????????????????????????? | | ?????????????????????????????????????????????????? | | ?????????????????????????????????????????????????? | | ?????????????????????????????????????????????????? | | ?????????????????????????????????????????????????? | | ?????????????????????????????????????????????????? | | ?????????????????????????????????????????????????? | | ????????????????????????????##+##????????????????? | | ???????????????????????????? ??????????????? | | ???????????????????????????? ??????????????? | | ???????????????????????????# T ??????????????? | | ???????????????????????????# ??????????????? | | ???????????????????????????# ??? ???????????? | | ???????????????????????????# ? ???????????? | | ???????????????????????????# ???????????? | | ??????????????##???#+####### """ """??????????? | | ??????????????# ! # """"""""? ???????? | | ??????????????# """ # """"" ??????? | | ??????????????? """ "Y" + ???????? | | ????????????????? """ """ # ???????????? | | ??????????????????? # #??????????????? | | ????????????????????#;;;;;;; #??????????????? | | ???????????##########;;; %;;% #??????????????? | | ???????? H =%= %@ h #??????????????? | | ???????? k t ! k %! #??????????????? | | ???????????####;## k % ! " #??????????????? | | ?????????????????# =% " #??????????????? | | ?????????????????+ " #??????????????? | | ?????????????????# t #??????????????? | | ?????????????????# #?######???????? | | ?????????????????#####+;;;;;### #?""" #???????? | | ???????????????????#! ###?# = # """ #???????? | | ???????????????????# #???# # """ #???????? | | ???????????????????# """#???# + #???????? | | ???????????????????# """#???# # #???????? | | ???????????????????# """#???# # #???????? | | ???????????????????# #???# #?######???????? | | ???????????????????########???# ##############?? | | ??????????????????????????????# # #?? | | ??????????????????????????????# # #?? | | ??????????????????????????????# #?? | | ??????????????????????????????# # #?? | | ??????????????????????????????# # #?? | | ??????????????????????????????# ##############?? | | ??????????????????????????????# #???? | | ??????????????????????????????# #???? | | ??????????????????????????????# #???? | | ???????????????????????????#######+###########???? | +----------------------------------------------------+ Best States ------------- Heat Dissipation 31 Energy Generation 14 Energy Capacity 160 Matter Stores 318 Matter Capacity 500 Sight Range 21 Terrain Scan Density 10 Evasion (%) 55 Recoil Reduction 2 Item Schematics ----------------- None Robot Schematics ------------------ None Fabricated ------------ Nothing Repaired ---------- Nothing Alien Tech Used ----------------- None Achievements -------------- None Challenges ------------ None Game ------ Seed LobotomyShiftLink Manual? 0 Play Time 00:07:20 Cumulative 18.1 hours Start 2025.07.20 @ 08:13:54 End 2025.07.20 @ 08:21:20 Sessions 1 Manual Loads 0 Difficulty Rogue Special Mode None Game No. 55 Rogue 55 Adventurer 0 Explorer 0 Win Type - Total 0 Types 0/0/0/0/0/0/0/0/0/0 Lore% 19 Gallery% 20 Achievement% 17 Wizard Run 0 Options --------- Layout 1 ASCII 0 Keyboard 0 Movement Mouse Keybinds 0 Fullscreen 1 Font 32/Tamsyn Map View 50x35 Zoom Use 0% Tactical HUD 1 Map Filters NONE Filters NONE Steam 1 RUN: c4541cc3-c954-46a2-ba49-9b44cacd0667